bitfinex/quotes_ETHUSD_20241225
["timestamp","ask_amount","ask_price","bid_price","bid_amount"]
[1735104133442,1.24019553,3496.3,3495.3,0.02860676]
[1735104133618,1.24019553,3496.3,3495.3,2.86098]
[1735104133973,4.10035553,3496.3,3495.3,2.86098]
[1735104134406,1.24019553,3496.3,3495.1,1.19462157]
[1735104134603,2.86036,3496.1,3495.1,1.19462157]
[1735104135433,3.27041555,3496.1,3495.3,0.811]
[1735104136295,3.27041555,3496.1,3495.2,1.19462157]
[1735104136296,3.48954197,3496.0,3495.2,1.19462157]
[1735104136641,2.86073,3495.7,3495.1,2.00562157]
[1735104136799,3.7818012,3495.7,3495.1,2.00562157]
[1735104138039,3.7818012,3495.7,3495.1,0.811]
[1735104138234,0.9210712,3495.7,3495.1,0.811]
[1735104138436,3.63412,3495.5,3494.8,0.811]
[1735104138598,2.86094,3495.4,3494.8,0.811]
[1735104139644,0.7733,3495.5,3494.8,0.811]
[1735104140063,3.63413,3495.5,3494.8,0.811]
[1735104144625,2.86092,3495.4,3494.8,0.811]
[1735104153585,2.86057,3495.8,3494.8,0.811]
[1735104153756,2.86067,3495.7,3494.8,1.01996942]
[1735104154085,2.86067,3495.7,3494.8,0.811]
[1735104157975,1.27869419,3495.6,3494.8,0.811]
[1735104158789,2.86089,3495.5,3494.8,0.811]
[1735104164078,3.0,3495.9,3495.0,0.783]
[1735104164426,3.76090711,3495.9,3495.0,0.783]
[1735104164621,0.41005555,3496.1,3495.0,0.783]
[1735104164794,3.0,3496.1,3495.2,0.783]
[1735104164981,2.86027,3496.2,3495.4,0.783]
[1735104165180,2.86027,3496.2,3495.5,0.02860582]
[1735104165386,1.76758972,3496.3,3495.4,0.783]
[1735104167032,4.62774972,3496.3,3495.4,0.783]
[1735104168026,0.46277497,3496.2,3495.4,0.783]
[1735104169484,1.27869419,3496.1,3495.4,0.783]
[1735104174570,0.8261,3496.6,3495.5,0.7696]
[1735104174843,1.19714841,3496.7,3496.0,0.7696]
[1735104175065,1.19714841,3496.7,3496.3,0.7696]
[1735104175241,1.19714841,3496.6,3496.3,0.362982]
[1735104175557,1.19714841,3496.6,3496.4,0.7696]
[1735104177139,1.79572262,3496.8,3496.4,0.7696]
[1735104177140,1.27869419,3497.1,3496.4,0.7696]
[1735104177627,1.27869419,3497.3,3496.4,0.7696]
[1735104177831,4.27869419,3497.4,3496.6,0.7696]
[1735104178240,3.0,3497.4,3496.6,0.7696]
[1735104180414,5.85927,3497.4,3496.6,0.7696]
[1735104191225,3.0,3497.6,3496.6,0.7696]
[1735104191527,2.85936,3497.3,3496.6,0.7696]
[1735104195541,2.84687106,3497.7,3496.6,0.7696]
[1735104195678,2.85919,3497.5,3496.6,0.7696]
[1735104196322,2.84687106,3497.7,3496.6,0.7696]
[1735104196472,0.1324549,3497.7,3496.8,2.85973]
[1735104196813,0.1324549,3497.7,3497.0,0.7668]
[1735104197882,3.63947106,3497.7,3497.0,0.79539283]
[1735104198148,5.57396616,3497.1,3496.4,0.7668]
[1735104198298,2.85959,3497.0,3496.4,0.7668]
[1735104198504,2.71441616,3496.7,3496.2,1.19462157]
[1735104198740,3.50701616,3496.7,3496.2,1.19462157]
[1735104199044,2.85992,3496.6,3496.2,1.19462157]
[1735104199242,2.86007,3496.5,3496.2,1.19462157]
[1735104199738,2.8566282,3496.5,3496.1,0.7668]
[1735104207175,6.36686616,3496.7,3496.1,0.7668]
[1735104211581,3.65245,3496.7,3496.1,0.7668]
[1735104215883,2.85985,3496.7,3496.1,0.7668]
[1735104222392,3.56009268,3496.7,3496.1,0.7668]
[1735104226202,2.85985,3496.7,3496.1,0.7668]
[1735104229304,3.50591616,3496.9,3496.1,0.7668]
[1735104229515,2.85993,3496.6,3496.1,0.7668]
[1735104232214,4.13791133,3496.6,3496.1,0.7668]
[1735104233314,1.27798133,3496.7,3496.1,0.7668]
[1735104235347,1.27798133,3496.7,3496.1,1.24899016]
[1735104240052,1.27798133,3496.7,3496.1,0.7668]
[1735104240254,4.13785133,3496.7,3496.1,0.7668]
[1735104241850,1.27798133,3496.7,3496.1,0.7668]
[1735104242853,1.27798133,3496.7,3496.2,0.98929683]
[1735104244458,2.47512974,3496.7,3496.3,2.47512861]
[1735104244941,5.33497974,3496.7,3496.3,2.47512861]
[1735104245359,5.33497974,3496.7,3496.3,0.98929683]
[1735104245540,2.39429683,3497.0,3496.1,1.96142157]
[1735104245541,1.27798133,3496.5,3496.1,1.96142157]
[1735104245741,4.13801133,3496.5,3496.1,1.96142157]
[1735104246827,2.86003,3496.5,3496.2,2.47771308]
[1735104247769,2.86003,3496.5,3496.3,0.99108523]
[1735104248966,2.86003,3496.5,3496.1,0.7668]
[1735104250399,2.86003,3496.5,3496.2,2.47833103]
[1735104251206,2.86003,3496.5,3496.1,1.96142157]
[1735104252199,4.05717841,3496.5,3496.2,0.99155426]
[1735104253295,1.19714841,3496.5,3496.3,0.99155426]
[1735104254411,1.19714841,3496.6,3496.1,1.96142157]
[1735104255411,1.19714841,3496.6,3496.2,2.47817321]
[1735104256490,1.19714841,3496.6,3496.3,2.47817321]
[1735104257711,4.05706841,3496.6,3496.3,2.47817321]
[1735104257853,4.05706841,3496.6,3496.4,0.99126928]
[1735104258987,4.05706841,3496.6,3496.1,1.96142157]
[1735104259989,1.19714841,3496.5,3496.2,1.48654307]
[1735104260199,1.19714841,3496.5,3496.2,2.47757178]
[1735104261089,1.19714841,3496.5,3496.3,0.99102871]
[1735104261770,4.05714841,3496.5,3496.3,0.99102871]
[1735104262295,2.86,3496.5,3496.1,1.96142157]
[1735104263567,2.86,3496.5,3496.2,2.4765261]
[1735104264468,4.05714841,3496.5,3496.3,0.99061044]
[1735104264892,1.19714841,3496.5,3496.3,0.99061044]
[1735104265594,1.19714841,3496.5,3496.1,0.7668]
[1735104266501,1.19714841,3496.5,3496.2,2.47684893]
[1735104267501,2.85992,3496.6,3496.1,0.7668]
[1735104267502,4.05706841,3496.6,3496.3,0.99073957]
[1735104268375,1.19714841,3496.6,3496.3,0.99073957]
[1735104268915,1.19714841,3496.6,3496.3,0.29521611]
[1735104269221,1.19714841,3496.6,3496.2,0.803]
[1735104270198,1.19714841,3496.7,3496.4,0.803]
[1735104271485,4.05666841,3497.1,3496.5,3.6702927]
[1735104272390,2.85969,3496.9,3496.5,3.6702927]
[1735104272687,2.85978,3496.8,3496.5,3.6702927]
[1735104272890,2.85978,3496.8,3496.6,2.47567113]
[1735104273330,1.27798133,3496.8,3496.6,2.47567113]
[1735104273534,2.85983,3496.7,3496.6,2.47567113]
[1735104273705,2.85983,3496.7,3496.2,1.99762157]
[1735104273900,1.27798133,3496.6,3496.2,1.99762157]
[1735104274231,1.27798133,3496.6,3496.2,1.19462157]
[1735104274628,1.27798133,3496.6,3496.0,1.98232157]
[1735104275429,4.13792133,3496.6,3496.0,1.98232157]
[1735104276021,4.13792133,3496.6,3496.1,2.47460638]
[1735104276635,1.27798133,3496.4,3496.1,2.47460638]
[1735104277007,1.27798133,3496.4,3496.2,0.98984255]
[1735104277408,4.13810133,3496.4,3496.2,0.98984255]
[1735104277623,2.86016,3496.3,3496.2,0.98984255]
[1735104277927,2.86016,3496.3,3495.9,1.19462157]
[1735104278894,2.86016,3496.3,3495.8,2.57963235]
[1735104278895,2.86016,3496.3,3496.0,2.47498752]
[1735104279635,1.27798133,3496.4,3496.0,2.47498752]
[1735104280133,1.27798133,3496.4,3495.8,1.98232157]
[1735104281248,1.27798133,3496.4,3495.9,3.66939454]
[1735104282535,1.27798133,3496.4,3496.0,2.47477297]
[1735104282841,3.62652,3496.5,3496.0,2.47477297]
[1735104283328,1.19714841,3496.6,3496.1,0.7667]
[1735104283731,1.19714841,3496.6,3496.2,0.7667]
[1735104284496,2.47512974,3497.0,3496.3,1.19462157]
[1735104285641,1.27798133,3497.0,3496.4,2.47477297]
[1735104286841,1.27798133,3497.0,3496.5,0.98990919]
[1735104287444,4.13760133,3497.0,3496.5,0.98990919]
[1735104287611,2.85968,3496.9,3496.5,0.98990919]
[1735104288144,2.85968,3496.9,3496.3,1.19462157]
[1735104288145,1.27798133,3496.6,3496.3,1.19462157]
[1735104288641,4.13797133,3496.6,3496.3,1.19462157]
[1735104289029,4.13797133,3496.6,3496.0,1.96132157]
[1735104289844,1.27798133,3496.6,3496.0,1.96132157]
[1735104290045,2.86001,3496.5,3496.0,1.96132157]
[1735104290447,2.86001,3496.5,3496.1,0.98937354]
[1735104291641,0.7581,3496.3,3496.1,0.98937354]
[1735104291885,0.7581,3496.3,3495.9,1.19462157]
[1735104292241,3.61828,3496.3,3495.9,1.19462157]
[1735104293441,3.61828,3496.3,3496.0,0.98955203]
[1735104294780,3.61828,3496.3,3495.8,1.19462157]
[1735104295682,1.27798133,3496.2,3495.8,1.19462157]
[1735104296041,1.27798133,3496.2,3495.9,2.47374238]
[1735104297445,1.27798133,3496.2,3495.7,1.19462157]
[1735104298467,1.8873163,3496.2,3495.7,1.19462157]
[1735104298675,4.93455133,3495.8,3495.7,1.19462157]
[1735104299191,0.796,3495.8,3495.7,1.19462157]
[1735104299357,4.93440133,3496.0,3495.7,1.19462157]
[1735104300088,4.93440133,3496.0,3495.3,0.8101]
[1735104300267,1.19714841,3496.1,3495.3,1.18976539]
[1735104300455,1.19714841,3496.1,3495.4,0.8101]
[1735104301694,1.79572262,3496.2,3495.5,2.4738145]
[1735104301695,3.0,3496.2,3495.5,2.4738145]
[1735104302592,3.0,3496.2,3495.6,2.4738145]
[1735104302821,3.27112974,3496.4,3495.7,0.8101]
[1735104302822,1.19714841,3496.4,3495.7,0.8101]
[1735104302950,1.19714841,3496.4,3495.8,0.73392461]
[1735104303356,2.86042,3496.0,3495.6,2.4738145]
[1735104303706,2.86042,3496.0,3495.7,2.4738145]
[1735104304812,2.86042,3496.0,3495.4,0.8101]
[1735104304813,2.86047,3496.0,3495.4,0.8101]
[1735104309913,2.86047,3496.0,3495.5,2.47262355]
[1735104310574,2.86042,3496.0,3495.5,2.47262355]
[1735104311214,2.86042,3496.0,3495.4,0.8101]
[1735104317821,2.86055,3495.9,3495.4,0.8101]
[1735104317983,0.7557,3495.8,3495.1,1.96922157]
[1735104318318,3.61676,3495.2,3495.1,1.19462157]
[1735104318461,9.33314644,3495.2,3495.1,1.19462157]
[1735104318661,10.55255008,3495.2,3495.1,1.19462157]
[1735104320227,8.88863849,3495.2,3494.3,0.7746]
[1735104320446,3.0,3495.0,3494.3,0.7746]
[1735104320563,2.86147,3494.8,3494.3,0.7746]
[1735104321164,2.86148,3494.7,3494.3,0.7746]
[1735104321565,3.75823444,3494.7,3493.7,0.7746]
[1735104321770,2.86184,3494.3,3493.7,0.7746]
[1735104322397,2.86196,3494.2,3493.7,0.7746]
[1735104323029,2.86196,3494.2,3493.3,0.7746]
[1735104323030,6.61758,3494.2,3493.3,0.7746]
[1735104323222,7.85098664,3494.2,3493.3,0.7746]
[1735104323378,2.86221,3493.8,3493.3,0.7746]
[1735104326941,2.71638644,3493.5,3492.7,0.8102]
[1735104327221,0.7601,3493.4,3492.7,0.8102]
[1735104327424,2.86278,3493.1,3492.7,0.8102]
[1735104331845,0.7601,3493.4,3492.7,0.8102]
[1735104332048,2.86263,3493.3,3492.7,0.8102]
[1735104333855,0.7601,3493.4,3492.7,0.8102]
[1735104334024,2.86271,3493.2,3492.7,0.8102]
[1735104337450,0.7601,3493.4,3492.7,0.8102]
[1735104337860,0.63389764,3493.3,3492.7,0.8102]
[1735104338357,2.86294,3493.0,3492.7,0.8102]
[1735104340337,2.71638644,3493.5,3492.7,0.8102]
[1735104340543,2.86254,3493.4,3492.7,0.8102]
[1735104341781,2.85909771,3493.4,3492.7,0.8102]
[1735104345287,3.8072,3494.0,3492.7,0.8102]
[1735104345443,3.8072,3494.0,3492.8,0.7799]
[1735104345771,2.8623,3493.7,3493.0,0.7799]
[1735104347479,2.86242,3493.6,3493.0,0.7799]
[1735104354085,2.86246,3493.5,3493.0,0.7799]
[1735104363844,0.8071,3493.4,3492.6,0.7919]
[1735104364142,2.86246,3493.5,3492.6,0.7919]
[1735104364441,2.86246,3493.5,3492.7,0.48497916]
[1735104366148,2.71638644,3493.2,3492.8,0.99037125]
[1735104366318,2.863,3492.9,3492.8,0.99037125]
[1735104367651,2.863,3492.9,3492.7,0.7919]
[1735104368711,2.8632,3492.6,3492.4,0.7919]
[1735104369545,5.57965644,3492.5,3492.4,3.6742591]
[1735104370522,6.33185644,3492.5,3492.4,3.6742591]
[1735104370731,6.33185644,3492.5,3492.3,0.99185501]
[1735104370937,2.86336,3492.4,3492.3,0.99185501]
[1735104372968,2.86369,3492.0,3491.6,0.7501]
[1735104373363,2.71638644,3492.1,3491.6,0.7501]
[1735104373724,5.58002644,3492.1,3491.6,0.7501]
[1735104374022,5.57975644,3492.4,3491.7,0.7501]
[1735104375192,2.71638644,3492.4,3491.7,0.7501]
[1735104375330,2.86344,3492.3,3491.7,0.7501]
[1735104377545,3.62324,3492.3,3491.6,0.37366539]
[1735104377756,2.86353,3492.2,3491.6,0.37366539]
[1735104379259,2.86353,3492.2,3491.4,2.00032157]
[1735104379653,2.86353,3492.2,3491.4,0.8057]
[1735104380987,2.86353,3492.2,3491.5,0.99014346]
[1735104383181,2.86353,3492.2,3491.4,0.8057]
[1735104390524,0.7598,3492.3,3491.4,0.8057]
[1735104390760,0.34761864,3492.2,3491.4,0.8057]
[1735104391740,2.71638644,3492.0,3491.4,0.8057]
[1735104391915,2.71638644,3492.0,3491.1,1.19462157]
[1735104391916,2.86386,3491.8,3491.2,0.7972]
[1735104392406,2.71638644,3491.6,3491.1,1.19462157]
[1735104393186,2.71638644,3491.6,3490.9,1.99182157]
[1735104393404,2.71638644,3491.6,3491.0,0.37837539]
[1735104397118,5.58045644,3491.6,3490.9,0.7972]
[1735104397309,2.86413,3491.5,3490.9,0.7972]
[1735104398091,0.7948,3491.4,3490.5,7.86303157]
[1735104399585,0.7948,3491.4,3490.5,1.99812157]
[1735104399786,3.65901,3491.4,3490.5,1.99812157]
[1735104400428,3.65901,3491.4,3490.6,2.47321732]
[1735104401419,3.65901,3491.4,3490.6,0.98928693]
[1735104403040,3.65901,3491.4,3490.5,3.27693257]
[1735104404039,0.7948,3491.4,3490.5,6.14183257]
[1735104404363,1.28174588,3491.2,3490.6,3.85411693]
[1735104405467,1.28174588,3491.2,3490.7,0.7554]
[1735104408429,1.28174588,3491.2,3490.8,0.9908635]
[1735104409541,1.28174588,3491.2,3490.8,2.47753257]
[1735104412237,1.28174588,3491.0,3490.9,0.9908635]
[1735104416185,1.28174588,3491.0,3490.9,3.67215414]
[1735104416537,2.07624588,3491.2,3490.9,3.67215414]
[1735104417981,2.07624588,3491.2,3491.0,2.47753257]
[1735104419254,2.07624588,3491.2,3491.1,0.9908635]
[1735104420175,5.14821047,3491.2,3491.1,0.9908635]
[1735104422585,5.14821047,3491.2,3490.3,2.68129064]
[1735104422879,1.28174588,3490.6,3490.3,2.68129064]
[1735104423665,1.28174588,3490.6,3490.4,2.47971028]
[1735104424812,1.28174588,3490.6,3490.5,0.99304121]
[1735104425515,1.28174588,3490.8,3490.5,0.99304121]
[1735104426217,1.28174588,3490.8,3490.4,0.99304121]
[1735104427617,1.28174588,3490.8,3490.3,2.68129064]
[1735104427618,1.28174588,3490.8,3490.5,0.99304121]
[1735104428618,1.28174588,3490.8,3490.4,0.99304121]
[1735104429820,1.28174588,3490.8,3490.5,0.99304121]
[1735104431102,1.28174588,3490.8,3490.4,2.47971028]
[1735104432400,1.28174588,3490.8,3490.5,0.99304121]
[1735104433390,0.7894,3490.7,3490.5,0.99304121]
[1735104436529,0.7894,3490.7,3490.6,0.99304121]
[1735104438733,0.7894,3490.7,3490.6,2.47971028]
[1735104440029,0.7894,3490.7,3490.6,0.99304121]
[1735104440336,1.28174588,3490.8,3490.6,0.99304121]
[1735104441091,1.28174588,3490.8,3490.6,1.48666907]
[1735104441831,2.07114588,3491.0,3490.6,1.48666907]
[1735104442427,2.56470347,3491.0,3490.5,1.48666907]
[1735104443966,2.56470347,3491.0,3490.4,1.19462157]
[1735104443967,2.56470347,3491.0,3490.6,2.47989322]
[1735104444322,2.07114588,3491.0,3490.6,2.47989322]
[1735104445175,2.07114588,3491.0,3490.7,0.99322415]
[1735104445845,4.93564588,3491.0,3490.7,0.99322415]
[1735104446467,4.93564588,3491.0,3490.6,1.48666907]
[1735104447855,4.93564588,3491.0,3490.5,1.48666907]
[1735104449066,4.93564588,3491.0,3490.6,2.48023838]
[1735104449269,1.28174588,3490.8,3490.6,2.48023838]
[1735104449660,4.14643588,3490.8,3490.6,2.48023838]
[1735104449825,1.28174588,3490.8,3490.6,2.48023838]
[1735104450261,1.28174588,3490.8,3490.5,1.48666907]
[1735104450673,1.28174588,3490.6,3490.5,1.48666907]
[1735104451476,1.28174588,3490.6,3490.3,1.19462157]
[1735104451949,0.7853,3490.5,3490.3,1.19462157]
[1735104453289,0.7853,3490.5,3490.4,2.48395895]
[1735104453637,1.28174588,3490.6,3490.4,2.48395895]
[1735104455581,1.28174588,3490.6,3490.5,0.99358358]
[1735104456982,1.28174588,3490.6,3490.5,2.48436377]
[1735104458297,2.86475,3490.7,3490.5,2.48436377]
[1735104459802,2.86475,3490.7,3490.6,0.99358358]
[1735104463703,1.28174588,3490.8,3490.6,0.99358358]
[1735104464331,1.28174588,3490.8,3490.6,2.48523058]
[1735104465797,4.14641588,3490.8,3490.7,2.48523058]
[1735104466002,4.87399031,3490.8,3490.7,2.48523058]
[1735104467110,4.87399031,3490.8,3490.7,0.99358358]
[1735104470807,4.87399031,3490.8,3490.2,0.8274]
[1735104470808,2.86483,3490.6,3490.4,1.19462157]
[1735104471103,4.14657588,3490.6,3490.4,1.19462157]
[1735104472211,4.14657588,3490.6,3490.5,2.48720212]
[1735104480572,1.28174588,3490.6,3490.5,2.48720212]
[1735104481561,1.28174588,3490.6,3490.5,0.99488085]
[1735104482070,2.86479,3490.7,3490.5,0.99488085]
[1735104484085,2.86479,3490.7,3490.3,1.19462157]
[1735104485178,2.86134465,3490.7,3490.3,1.19462157]
[1735104485780,2.86134465,3490.7,3490.4,2.48588746]
[1735104486989,2.86134465,3490.7,3490.5,0.99435498]
[1735104488405,2.86134465,3490.7,3490.2,2.02202157]
[1735104488406,2.86134465,3490.7,3490.3,1.19462157]
[1735104489909,2.86134465,3490.7,3490.4,2.48712621]
[1735104491229,2.86134465,3490.7,3490.5,0.99485048]
[1735104492620,2.86134465,3490.7,3490.3,1.19462157]
[1735104494223,2.86134465,3490.7,3490.4,2.48730973]
[1735104495533,2.86134465,3490.7,3490.5,0.99492389]
[1735104497135,2.86134465,3490.7,3490.3,1.19462157]
[1735104497336,4.06174841,3490.9,3490.4,0.7696]
[1735104498023,1.19714841,3491.0,3490.4,4.45168658]
[1735104498329,2.86469,3490.8,3490.4,4.45168658]
[1735104499340,2.86469,3490.8,3490.5,3.68208658]
[1735104499851,1.28174588,3490.9,3490.5,3.68208658]
[1735104500002,4.14656588,3490.7,3490.5,3.68208658]
[1735104501050,4.14656588,3490.7,3490.6,2.48746501]
[1735104502458,4.14656588,3490.7,3490.6,0.994986]
[1735104502762,4.96316588,3490.7,3490.6,0.994986]
[1735104504258,2.865,3490.4,3490.1,1.19462157]
[1735104504439,4.14674588,3490.4,3490.1,1.19462157]
[1735104505341,4.14674588,3490.4,3490.2,2.48846493]
[1735104506357,4.14674588,3490.4,3490.3,2.48846493]
[1735104507474,4.14674588,3490.4,3490.3,0.99538597]
[1735104510973,1.19714841,3490.7,3490.3,1.78718597]
[1735104511112,1.19714841,3490.7,3490.4,0.29818075]
[1735104511753,1.19714841,3490.7,3490.3,3.28014131]
[1735104512721,1.28174588,3490.8,3490.3,3.28014131]
[1735104512722,1.28174588,3490.8,3490.4,3.68296288]
[1735104514277,1.28174588,3490.8,3490.5,3.68296288]
[1735104515976,1.28174588,3490.8,3490.6,2.48834131]
[1735104517078,1.28174588,3490.8,3490.7,0.99538597]
[1735104517239,4.15531843,3490.8,3490.7,0.99538597]
[1735104517443,4.14641588,3490.8,3490.7,0.99538597]
[1735104518289,2.86478,3490.7,3490.4,1.19462157]
[1735104519679,2.86478,3490.7,3490.5,2.48797663]
[1735104520976,2.86478,3490.7,3490.6,0.99519065]
[1735104523884,3.63598,3490.7,3490.6,0.99519065]
[1735104524423,4.35705554,3490.7,3490.6,0.99519065]
[1735104524679,1.49227554,3490.7,3490.3,1.19462157]
[1735104524860,4.14659588,3490.6,3490.3,1.19462157]
[1735104525224,1.28174588,3490.6,3490.3,1.19462157]
[1735104525428,2.865,3490.4,3490.3,1.19462157]
[1735104526091,2.865,3490.4,3490.2,1.19462157]
[1735104526947,2.86508,3490.3,3490.2,1.19462157]
[1735104527580,2.86508,3490.3,3490.1,1.19462157]
[1735104528686,2.86508,3490.3,3490.2,2.48823081]
[1735104533538,3.27976259,3490.3,3490.2,2.48823081]
[1735104533835,4.05096259,3490.3,3490.2,2.48823081]
[1735104535637,3.27976259,3490.3,3490.0,1.19462157]
[1735104535806,2.86508,3490.3,3490.0,1.19462157]
[1735104536137,2.86508,3490.3,3489.9,1.19462157]
[1735104537060,2.86508,3490.3,3490.0,2.4876126]
[1735104538752,2.86508,3490.3,3490.1,2.4876126]
[1735104539457,2.86516,3490.2,3490.1,2.4876126]
[1735104540438,2.86516,3490.2,3489.9,1.19462157]
[1735104540644,1.28174588,3490.5,3490.0,0.8018]
[1735104540878,2.86502,3490.4,3490.0,0.8018]
[1735104541571,1.28174588,3490.5,3490.0,0.8018]
[1735104542477,4.14668588,3490.5,3490.0,0.8018]
[1735104542776,4.14668588,3490.5,3490.1,2.48718316]
[1735104544002,4.14668588,3490.5,3490.2,0.99487326]
[1735104544845,4.14668588,3490.5,3490.0,0.8018]
[1735104545894,2.86494,3490.5,3490.0,0.8018]
[1735104546079,2.86494,3490.5,3490.1,2.4872142]
[1735104546606,2.865,3490.4,3490.1,2.4872142]
[1735104546996,2.865,3490.4,3490.2,2.4872142]
[1735104548584,4.14682588,3490.3,3490.2,2.4872142]
[1735104549311,2.86524,3490.1,3490.0,1.19462157]
[1735104550521,2.86524,3490.1,3489.9,1.19462157]
[1735104550874,2.86532,3490.0,3489.9,1.19462157]
[1735104551759,2.86532,3490.0,3489.8,1.19462157]
[1735104553076,2.86532,3490.0,3489.9,2.4871921]
[1735104553278,1.28174588,3490.3,3489.9,2.4871921]
[1735104553621,2.86519,3490.2,3489.9,2.4871921]
[1735104554484,2.86519,3490.2,3489.7,1.19462157]
[1735104554704,2.86519,3490.2,3489.8,0.7801]
[1735104555565,2.86503,3490.4,3489.8,0.7801]
[1735104555717,5.34375429,3490.6,3489.8,3.26690388]
[1735104557134,2.86492,3490.5,3489.8,3.26690388]
[1735104557333,2.86492,3490.5,3489.9,2.48680388]
[1735104558409,2.86492,3490.5,3490.0,2.48680388]
[1735104559734,2.86501,3490.4,3490.0,2.48680388]
[1735104559894,2.86501,3490.4,3490.1,0.99472155]
[1735104560406,2.86501,3490.4,3490.1,1.77482155]
[1735104561543,2.86501,3490.4,3490.1,0.7801]
[1735104563562,1.19714841,3490.7,3490.1,0.97757216]
[1735104563728,1.19714841,3490.7,3490.2,0.7801]
[1735104564964,4.14628588,3491.0,3490.4,1.19462157]
[1735104565254,4.14628588,3491.0,3490.4,1.98812157]
[1735104565958,1.19714841,3491.2,3490.5,0.7935]
[1735104566156,1.19714841,3491.2,3490.7,0.7935]
[1735104566365,1.19714841,3491.2,3491.0,1.28174588]
[1735104566579,1.19714841,3491.2,3491.1,4.20792]
[1735104567960,5.34231429,3492.4,3491.2,2.86431]
[1735104568112,5.34231429,3492.4,3491.4,0.7935]
[1735104569364,4.14516588,3492.4,3491.5,2.48716451]
[1735104569518,4.14516588,3492.4,3491.6,0.7935]
[1735104571459,2.86346,3492.3,3491.6,0.7935]
[1735104572666,2.86353,3492.2,3491.6,0.7935]
[1735104574833,1.28174588,3492.2,3491.6,0.7935]
[1735104575171,1.28174588,3492.0,3491.4,0.8013]
[1735104575336,2.8637,3492.0,3491.4,0.8013]
[1735104576133,4.14528588,3492.2,3491.4,0.8013]
[1735104576970,2.86364,3492.1,3491.4,0.8013]
[1735104578653,1.28174588,3492.2,3491.4,0.8013]
[1735104578966,2.86368,3492.0,3491.4,0.8013]
[1735104582523,1.28174588,3492.2,3491.4,0.8013]
[1735104583165,2.86368,3492.1,3491.4,0.8013]
[1735104585075,2.86369,3492.0,3491.4,0.8013]
[1735104590106,1.28174588,3492.2,3491.4,0.8013]
[1735104590403,2.86344,3492.3,3491.4,0.8013]
[1735104590577,2.86344,3492.3,3491.5,0.49472859]
[1735104590905,2.86344,3492.3,3491.6,0.8169]
[1735104594014,6.44954743,3492.7,3491.6,0.8169]
[1735104594015,2.8634,3492.4,3491.6,0.8169]
[1735104596476,1.28174588,3492.5,3491.6,0.8169]
[1735104596677,2.86345,3492.3,3491.6,0.8169]
[1735104597001,2.86353,3492.2,3491.6,0.8169]
[1735104600222,1.28174588,3492.5,3491.6,0.8169]
[1735104600393,2.86362,3492.1,3491.6,0.8169]
[1735104604564,2.86344,3492.3,3491.6,0.8169]
[1735104604700,2.86378,3491.9,3491.6,0.8169]
[1735104610846,2.86378,3491.9,3491.7,2.48229313]
[1735104612148,2.86378,3491.9,3491.8,2.48229313]
[1735104616170,2.86378,3491.9,3491.8,3.28019313]
[1735104621776,2.86363,3492.1,3491.8,3.28019313]
[1735104622935,1.19679692,3492.4,3491.8,4.02702469]
[1735104623130,1.19679692,3492.4,3491.9,0.7979]
[1735104623411,4.06015692,3492.4,3491.9,4.48312445]
[1735104623821,1.19679692,3492.4,3492.0,0.7979]
[1735104624759,2.86328,3492.5,3492.1,1.20293132]
[1735104625684,4.05990692,3492.7,3492.1,1.20293132]
[1735104625904,2.86319,3492.6,3492.2,0.7825]
[1735104626408,1.19679692,3492.7,3492.3,0.7825]
[1735104626559,1.19679692,3492.7,3492.4,0.02863061]
[1735104626760,1.19679692,3492.7,3492.5,0.7825]
[1735104627480,2.86271,3493.2,3492.5,7.04642532]
[1735104627805,2.86271,3493.2,3492.5,7.79325688]
[1735104629177,2.86271,3493.2,3492.6,3.68306665]
[1735104630610,2.86271,3493.2,3492.5,1.52933156]
[1735104630611,2.86271,3493.2,3492.7,0.99291725]
[1735104631712,2.86271,3493.2,3492.8,0.7825]
[1735104633013,2.86256,3493.4,3492.8,0.7825]
[1735104633171,1.19679692,3493.6,3492.8,0.7825]
[1735104633373,1.28174588,3493.5,3492.8,0.93543316]
[1735104633575,2.86273,3493.2,3492.8,0.7825]
[1735104636829,2.8629,3493.0,3492.8,0.7825]
[1735104637764,1.28174588,3492.9,3492.5,1.98327352]
[1735104638136,1.28174588,3492.9,3492.5,0.7825]
[1735104638762,2.86318,3492.7,3492.4,1.20077352]
[1735104639662,2.86318,3492.7,3492.2,0.7825]
[1735104640179,1.28174588,3492.9,3492.2,0.7825]
[1735104640490,2.86336,3492.4,3492.2,0.7825]
[1735104642081,1.28174588,3492.7,3491.9,2.00037352]
[1735104642229,1.28174588,3492.1,3491.9,1.20077352]
[1735104642826,1.35855871,3492.9,3492.0,0.7996]
[1735104643031,2.86353,3492.2,3492.0,0.7996]
[1735104643344,2.8636,3492.1,3492.0,0.7996]
[1735104643527,2.86344,3492.3,3491.9,1.20077352]
[1735104643741,2.49064747,3492.4,3491.9,1.20077352]
[1735104643987,2.86368,3492.0,3491.9,1.20077352]
[1735104644293,2.86368,3492.0,3491.6,0.7996]
[1735104648099,0.7944,3492.4,3491.6,0.7996]
[1735104648298,2.86353,3492.2,3491.6,0.7996]
[1735104650563,2.86361,3492.1,3491.7,0.99160539]
[1735104651689,2.86361,3492.1,3491.7,2.47892665]
[1735104653100,2.86361,3492.1,3491.7,0.99160539]
[1735104654551,2.86369,3492.0,3491.7,0.99160539]
[1735104655955,2.86369,3492.0,3491.7,0.7694]
[1735104660395,2.86369,3492.0,3491.4,1.20077352]
[1735104662007,2.86369,3492.0,3491.5,2.4789214]
[1735104662543,2.86369,3492.0,3491.6,0.7694]
[1735104663411,2.86369,3492.0,3491.6,1.76096856]
[1735104664613,2.86369,3492.0,3491.6,0.99156856]
[1735104664811,2.86369,3492.0,3491.7,0.99156856]
[1735104665276,2.86369,3492.0,3491.7,1.76096856]
[1735104666461,2.86384,3491.9,3491.5,1.20077352]
[1735104667537,2.86396,3491.7,3491.5,1.20077352]
[1735104668012,2.86396,3491.7,3491.5,1.48825289]
[1735104669164,2.86396,3491.7,3491.2,0.7694]
[1735104670510,2.86396,3491.7,3491.3,0.99232148]
[1735104671009,2.86403,3491.6,3491.3,0.99232148]
[1735104671661,2.86403,3491.6,3491.0,1.20077352]
[1735104672009,2.86403,3491.6,3491.1,0.67556832]
[1735104672760,2.06174588,3491.5,3491.1,0.99209413]
[1735104673055,2.86434,3491.2,3491.1,0.99209413]
[1735104674334,2.86442,3491.1,3490.5,1.20077352]